bitfinex/quotes_BTCUSD_20230107
["timestamp","ask_amount","ask_price","bid_price","bid_amount"]
[1673080163987,1.84909247,16945.0,16944.0,0.90205463]
[1673080164745,1.25274801,16945.0,16944.0,0.90205463]
[1673080167274,1.84909247,16945.0,16944.0,0.90205463]
[1673080168047,2.44909247,16945.0,16944.0,0.89705463]
[1673080169020,2.44909247,16945.0,16944.0,0.19705463]
[1673080169511,2.44909247,16945.0,16944.0,0.89705463]
[1673080172088,2.82940972,16945.0,16944.0,0.89705463]
[1673080172335,3.41955372,16945.0,16944.0,0.89705463]
[1673080172582,3.03923647,16945.0,16944.0,0.89705463]
[1673080174815,3.03923647,16945.0,16944.0,0.89205463]
[1673080178569,2.44289201,16945.0,16944.0,0.89205463]
[1673080181311,2.74289201,16945.0,16944.0,0.89205463]
[1673080181816,2.44289201,16945.0,16944.0,0.89205463]
[1673080182569,3.03949319,16945.0,16944.0,0.89205463]
[1673080183059,2.44289201,16945.0,16944.0,0.89205463]
[1673080184011,3.03949269,16945.0,16944.0,0.89205463]
[1673080189142,3.03949269,16945.0,16944.0,0.19205463]
[1673080190155,3.03949269,16945.0,16944.0,0.89205463]
[1673080192622,3.20544997,16945.0,16944.0,0.89205463]
[1673080193932,3.03949269,16945.0,16944.0,0.89205463]
[1673080196155,3.03949269,16945.0,16944.0,0.19205463]
[1673080196671,3.21189269,16945.0,16944.0,0.19205463]
[1673080197156,3.21189269,16945.0,16944.0,0.89205463]
[1673080197679,3.21189269,16945.0,16944.0,0.89196175]
[1673080201867,2.61529201,16945.0,16944.0,0.89196175]
[1673080203133,3.21187154,16945.0,16944.0,0.89196175]
[1673080203398,2.61529201,16945.0,16944.0,0.89196175]
[1673080203641,2.61288984,16945.0,16944.0,0.89196175]
[1673080205399,3.20952265,16945.0,16944.0,0.89196175]
[1673080205640,2.61288984,16945.0,16944.0,0.89196175]
[1673080206148,3.20952442,16945.0,16944.0,0.89196175]
[1673080206393,2.61288984,16945.0,16944.0,0.89196175]
[1673080207841,2.61288984,16945.0,16944.0,0.19196175]
[1673080208759,2.61277355,16945.0,16944.0,0.19196175]
[1673080208968,2.61277355,16945.0,16944.0,0.89196175]
[1673080214945,2.61277355,16945.0,16944.0,0.19196175]
[1673080215199,2.61277355,16945.0,16944.0,0.89196175]
[1673080216739,2.61277355,16945.0,16944.0,0.19196175]
[1673080217300,2.91277355,16945.0,16944.0,0.19196175]
[1673080217493,2.61277355,16945.0,16944.0,0.19196175]
[1673080218233,2.91277355,16945.0,16944.0,0.19196175]
[1673080218749,2.61277355,16945.0,16944.0,0.19196175]
[1673080219798,2.91277355,16945.0,16944.0,0.19196175]
[1673080221267,2.61277355,16945.0,16944.0,0.19196175]
[1673080223755,2.91277355,16945.0,16944.0,0.19196175]
[1673080224012,2.98686171,16945.0,16944.0,0.19196175]
[1673080224265,2.61277355,16945.0,16944.0,0.19196175]
[1673080231695,2.91277355,16945.0,16944.0,0.19196175]
[1673080232163,2.61277355,16945.0,16944.0,0.19196175]
[1673080232920,2.91277355,16945.0,16944.0,0.19196175]
[1673080233172,2.91277355,16945.0,16944.0,0.19186846]
[1673080236599,2.61277355,16945.0,16944.0,0.19186846]
[1673080236859,2.60962416,16945.0,16944.0,0.19186846]
[1673080237141,2.01277355,16945.0,16944.0,0.19186846]
[1673080237650,2.60961651,16945.0,16944.0,0.19186846]
[1673080241562,2.60961651,16945.0,16944.0,0.10208363]
[1673080242899,2.01947251,16945.0,16944.0,0.10208363]
[1673080243367,2.01947251,16945.0,16944.0,0.19153058]
[1673080243619,2.01947251,16945.0,16944.0,0.79778958]
[1673080244190,1.42262955,16945.0,16944.0,0.79778958]
[1673080244884,1.42262955,16945.0,16944.0,0.19153058]
[1673080245148,1.42262955,16945.0,16944.0,0.79778958]
[1673080245915,1.42262955,16945.0,16944.0,0.19153058]
[1673080246703,1.25022955,16945.0,16944.0,0.19153058]
[1673080247454,1.84707251,16945.0,16944.0,0.19153058]
[1673080247974,1.25022955,16945.0,16944.0,0.19153058]
[1673080248979,1.25022955,16945.0,16944.0,0.89153058]
[1673080249259,1.25022955,16945.0,16944.0,1.49778958]
[1673080249753,1.25022955,16945.0,16944.0,0.89153058]
[1673080250768,1.25022955,16945.0,16944.0,1.49778958]
[1673080253119,1.78042177,16945.0,16944.0,1.49778958]
[1673080253373,1.78042177,16945.0,16944.0,0.89153058]
[1673080254926,2.38042177,16945.0,16944.0,0.89142869]
[1673080255168,2.38042177,16945.0,16944.0,0.19142869]
[1673080256146,2.38042177,16945.0,16944.0,0.89142869]
[1673080256413,1.78042177,16945.0,16944.0,0.89142869]
[1673080257134,1.78042177,16945.0,16944.0,1.49768769]
[1673080257856,1.19027777,16945.0,16944.0,1.49768769]
[1673080259337,1.19027777,16945.0,16944.0,0.89142869]
[1673080261078,1.19027777,16945.0,16944.0,1.49768769]
[1673080262757,1.19027777,16945.0,16944.0,0.89142869]
[1673080263019,0.54065112,16945.0,16944.0,0.89142869]
[1673080263245,0.54065112,16945.0,16944.0,2.06626947]
[1673080263545,0.0104589,16945.0,16944.0,2.06626947]
[1673080265330,0.01035769,16945.0,16944.0,2.06626947]
[1673080265642,0.45201798,16945.0,16944.0,2.06626947]
[1673080266351,0.44351798,16945.0,16944.0,2.06626947]
[1673080266599,0.79686221,16945.0,16944.0,2.82934847]
[1673080267352,0.62015129,16945.0,16944.0,3.28334483]
[1673080267610,0.62015129,16945.0,16944.0,3.41952747]
[1673080268634,0.79680591,16945.0,16944.0,3.87352383]
[1673080268886,0.44346168,16945.0,16944.0,3.87352383]
[1673080269401,0.17851231,16945.0,16944.0,3.30494205]
[1673080269651,0.00185769,16945.0,16944.0,4.01893784]
[1673080275242,0.00185769,16945.0,16944.0,3.95214205]
[1673080276774,0.00185769,16945.0,16944.0,3.65214205]
[1673080277311,0.00185769,16945.0,16944.0,3.95214205]
[1673080277559,0.00185769,16945.0,16944.0,3.65214205]
[1673080278067,0.00185769,16945.0,16944.0,3.95214205]
[1673080280342,0.00185769,16945.0,16944.0,4.06434487]
[1673080281335,0.00185769,16945.0,16944.0,3.61034851]
[1673080281855,0.00185769,16945.0,16944.0,4.06434487]
[1673080282920,0.00185769,16945.0,16944.0,3.61034851]
[1673080283688,0.00185769,16945.0,16944.0,4.06434487]
[1673080286140,0.00185769,16945.0,16944.0,3.61034851]
[1673080286618,0.00185769,16945.0,16944.0,3.00408951]
[1673080287124,0.00185769,16945.0,16944.0,3.61034851]
[1673080288635,0.00185769,16945.0,16944.0,3.61026431]
[1673080290166,0.00185769,16945.0,16944.0,3.00400531]
[1673080290667,0.00185769,16945.0,16944.0,3.61026431]
[1673080291158,0.00185769,16945.0,16944.0,4.06426067]
[1673080292148,0.00185769,16945.0,16944.0,3.61026431]
[1673080293779,0.00185769,16945.0,16944.0,3.00400531]
[1673080294212,0.00185769,16945.0,16944.0,3.61026431]
[1673080294850,0.00185769,16945.0,16944.0,4.06426067]
[1673080295104,0.00185769,16945.0,16944.0,3.61026431]
[1673080295863,0.00185769,16945.0,16944.0,4.06426067]
[1673080296495,0.00185769,16945.0,16944.0,3.61026431]
[1673080296742,0.00185769,16945.0,16944.0,3.43736431]
[1673080303000,0.17851231,16945.0,16944.0,3.43736431]
[1673080304505,0.17851231,16945.0,16944.0,2.73736431]
[1673080305527,0.17851231,16945.0,16944.0,3.43736431]
[1673080305787,0.44346168,16945.0,16944.0,3.43736431]
[1673080306055,0.17851231,16945.0,16944.0,3.30535785]
[1673080306309,0.17851231,16945.0,16944.0,3.60535785]
[1673080306554,0.00185769,16945.0,16944.0,3.60535785]
[1673080306806,0.00185769,16945.0,16944.0,3.50231691]
[1673080307056,0.00185769,16945.0,16944.0,3.20231691]
[1673080307305,0.00185769,16945.0,16944.0,3.50231691]
[1673080308300,0.00185769,16945.0,16944.0,3.95631327]
[1673080308561,0.00185769,16945.0,16944.0,3.50231691]
[1673080308923,0.00185769,16945.0,16944.0,3.95631327]
[1673080309174,0.00185769,16945.0,16944.0,3.95641547]
[1673080309670,0.00185769,16945.0,16944.0,3.50241911]
[1673080309924,0.00185769,16945.0,16944.0,4.03380049]
[1673080310183,0.00185769,16945.0,16944.0,3.73380049]
[1673080310909,0.00185769,16945.0,16944.0,4.03380049]
[1673080311661,0.00185769,16945.0,16944.0,3.73380049]
[1673080311910,0.00185769,16945.0,16944.0,3.55674507]
[1673080312166,0.00185769,16945.0,16944.0,3.02536369]
[1673080312410,0.00185769,16945.0,16944.0,3.95641547]
[1673080312662,0.00185769,16945.0,16944.0,4.22193911]
[1673080312921,0.00185769,16945.0,16944.0,12.59395482]
[1673080313175,0.00185769,16945.0,16944.0,13.09577853]
[1673080313447,0.00185769,16945.0,16944.0,11.50424282]
[1673080313708,0.00185769,16945.0,16944.0,12.22376282]
[1673080313963,0.00185769,16945.0,16944.0,11.95823918]
[1673080314996,0.00185769,16945.0,16944.0,12.22376282]
[1673080315478,0.00185769,16945.0,16944.0,11.8861693]
[1673080315739,0.00185769,16945.0,16944.0,4.12064566]
[1673080317673,0.00185769,16945.0,16944.0,3.77334566]
[1673080318452,0.00185769,16945.0,16944.0,4.22734202]
[1673080319333,0.00185769,16945.0,16944.0,3.52734202]
[1673080319597,0.00185769,16945.0,16944.0,4.22734202]
[1673080320134,0.00185769,16945.0,16944.0,3.77334566]
[1673080320606,0.00185769,16945.0,16944.0,3.60911547]
[1673080320610,0.00185769,16945.0,16944.0,3.95571547]
[1673080320862,0.00185769,16945.0,16944.0,4.48697883]
[1673080321126,0.00185769,16945.0,16944.0,12.59323783]
[1673080323161,0.00185769,16945.0,16944.0,11.72123911]
[1673080323652,0.00185769,16945.0,16944.0,11.45571547]
[1673080323927,0.00185769,16945.0,16944.0,11.72123911]
[1673080324436,1e-08,16945.0,16944.0,12.59324112]
[1673080328468,1e-08,16945.0,16944.0,12.29324112]
[1673080328729,1e-08,16945.0,16944.0,10.70171911]
[1673080329761,1e-08,16945.0,16944.0,11.15571547]
[1673080330013,1e-08,16945.0,16944.0,11.45571547]
[1673080330786,1e-08,16945.0,16944.0,11.00171911]
[1673080331038,1e-08,16945.0,16944.0,11.45571547]
[1673080331565,1e-08,16945.0,16944.0,11.00171911]
[1673080331889,1e-08,16945.0,16944.0,11.45571547]
[1673080333345,1e-08,16945.0,16944.0,11.00171911]
[1673080336276,1e-08,16945.0,16944.0,10.75571547]
[1673080336803,1e-08,16945.0,16944.0,10.12781911]
[1673080337092,1e-08,16945.0,16944.0,10.58181547]
[1673080337346,1e-08,16945.0,16944.0,11.28181547]
[1673080339388,1e-08,16945.0,16944.0,10.82781911]
[1673080341902,1e-08,16945.0,16944.0,11.63984449]
[1673080342164,1e-08,16945.0,16944.0,11.37432085]
[1673080342431,1e-08,16945.0,16944.0,11.63984449]
[1673080342710,1e-08,16945.0,16944.0,11.37432085]
[1673080342925,1e-08,16945.0,16944.0,11.63984449]
[1673080343138,1e-08,16945.0,16944.0,10.93984449]
[1673080343393,1e-08,16945.0,16944.0,11.12831721]
[1673080343907,1e-08,16945.0,16944.0,10.93984449]
[1673080344163,1e-08,16945.0,16944.0,11.39384085]
[1673080344410,1e-08,16945.0,16944.0,11.63984449]
[1673080345871,1e-08,16945.0,16944.0,12.5118648]
[1673080346909,1e-08,16945.0,16944.0,12.6857648]
[1673080347400,1e-08,16945.0,16944.0,11.81374449]
[1673080347701,1e-08,16945.0,16944.0,11.80874449]
[1673080347953,1e-08,16945.0,16944.0,12.26274085]
[1673080348212,1e-08,16945.0,16944.0,12.68077179]
[1673080348460,1e-08,16945.0,16944.0,11.80874449]
[1673080348961,1e-08,16945.0,16944.0,11.46214449]
[1673080349505,1e-08,16945.0,16944.0,11.91614085]
[1673080350216,1e-08,16945.0,16944.0,10.76214449]
[1673080350958,1e-08,16945.0,16944.0,11.21614085]
[1673080351221,1e-08,16945.0,16944.0,11.91614085]
[1673080351802,1e-08,16945.0,16944.0,12.78817021]
[1673080352583,0.44108746,16946.0,16945.0,0.5]
[1673080352832,0.44108746,16946.0,16945.0,3.59924256]
[1673080353337,0.44108746,16946.0,16945.0,3.68749477]
[1673080353637,0.44108746,16946.0,16945.0,3.18749477]
[1673080354140,0.44108746,16946.0,16945.0,3.27149477]
[1673080354141,0.44308746,16946.0,16945.0,3.27149477]
[1673080354915,0.44108746,16946.0,16945.0,3.18749477]
[1673080355143,0.44308746,16946.0,16945.0,3.27149477]
[1673080356315,0.44108746,16946.0,16945.0,3.27149477]
[1673080356628,0.44108746,16946.0,16945.0,3.18749477]
[1673080356852,0.44408746,16946.0,16945.0,3.32649477]
[1673080357317,0.44408746,16946.0,16945.0,2.62649477]
[1673080357616,0.44108746,16946.0,16945.0,2.48749477]
[1673080357883,0.44408746,16946.0,16945.0,2.62549477]
[1673080358356,0.44408746,16946.0,16945.0,3.32549477]
[1673080362736,0.44408746,16946.0,16945.0,2.71923577]
[1673080364317,0.44408746,16946.0,16945.0,2.01923577]
[1673080365397,0.79743169,16946.0,16945.0,2.71923577]
[1673080365891,0.6212936,16946.0,16945.0,2.71923577]
[1673080368282,0.79818664,16946.0,16945.0,2.71923577]
[1673080368539,0.6212936,16946.0,16945.0,2.71923577]
[1673080368815,0.79820538,16946.0,16945.0,2.71923577]
[1673080369342,0.6212936,16946.0,16945.0,2.71923577]
[1673080370612,0.79820368,16946.0,16945.0,2.71923577]
[1673080370872,0.44485945,16946.0,16945.0,2.71923577]
[1673080372857,0.44485945,16946.0,16945.0,2.01915226]
[1673080373113,0.44474106,16946.0,16945.0,2.51915226]
[1673080373365,0.44474106,16946.0,16945.0,2.01915226]
[1673080373871,0.44474106,16946.0,16945.0,2.71915226]
[1673080374874,0.79808529,16946.0,16945.0,2.71915226]
[1673080375125,0.44474106,16946.0,16945.0,2.71915226]
[1673080379103,0.62117521,16946.0,16945.0,2.71915226]
[1673080379614,1.0628355,16946.0,16945.0,2.71915226]
[1673080379873,0.79800452,16946.0,16945.0,2.71915226]
[1673080380137,1.67119136,16946.0,16945.0,0.92625221]
[1673080380417,1.5220454,16946.0,16945.0,0.92625221]
[1673080381154,1.5190454,16946.0,16945.0,0.78825221]
[1673080381407,1.5240454,16946.0,16945.0,0.91225221]
[1673080381667,1.5190454,16946.0,16945.0,0.78825221]
[1673080381916,1.5240454,16946.0,16945.0,0.91325221]
[1673080382160,0.99385318,16946.0,16945.0,0.91325221]
[1673080385486,1.43550233,16946.0,16945.0,0.91325221]
[1673080385696,0.99385318,16946.0,16945.0,0.91325221]
[1673080387826,1.43540824,16946.0,16945.0,0.91325221]
[1673080388104,1.43541446,16946.0,16945.0,0.91325221]
[1673080389626,0.99385318,16946.0,16945.0,0.91325221]
[1673080390373,1.5240454,16946.0,16945.0,0.91325221]
[1673080390890,1.5325454,16946.0,16945.0,0.91325221]
[1673080391154,1.00235318,16946.0,16945.0,0.91325221]
[1673080393445,1.59246218,16946.0,16945.0,0.91317207]
[1673080394514,2.03377252,16946.0,16945.0,0.91317207]
[1673080396281,1.44366352,16946.0,16945.0,0.91317207]
[1673080396537,1.6242056,16946.0,16945.0,0.91317207]
[1673080398346,1.88899354,16946.0,16945.0,0.91317207]
[1673080398590,1.88899301,16946.0,16945.0,0.91317207]
[1673080399830,1.6242056,16946.0,16945.0,0.91317207]
[1673080403641,1.6242056,16946.0,16945.0,0.21317207]
[1673080404626,1.6242056,16946.0,16945.0,0.91317207]
[1673080405541,1.62428686,16946.0,16945.0,0.91317207]
[1673080406312,1.27116352,16946.0,16945.0,0.91317207]
[1673080407600,1.26266352,16946.0,16945.0,0.91317207]
[1673080409131,1.08876352,16946.0,16945.0,0.91317207]
[1673080410619,1.08876352,16946.0,16945.0,0.21317207]
[1673080411598,1.08876352,16946.0,16945.0,0.91317207]
[1673080416457,0.64745318,16946.0,16945.0,0.91317207]
[1673080417475,0.64745318,16946.0,16945.0,0.21317207]
[1673080417735,0.64745318,16946.0,16945.0,0.21308868]
[1673080417736,1.14745318,16946.0,16945.0,0.21308868]
[1673080418502,1.6776454,16946.0,16945.0,0.91308868]
[1673080419268,1.1776454,16946.0,16945.0,0.91308868]
[1673080424665,1.1776454,16946.0,16945.0,0.21308868]
[1673080425697,1.1776454,16946.0,16945.0,0.91308868]
[1673080431664,1.1776454,16946.0,16945.0,0.21308868]
[1673080433410,1.1776454,16946.0,16945.0,0.91308868]
[1673080439857,1.1776454,16946.0,16945.0,1.51934768]
[1673080440554,1.1776454,16946.0,16945.0,0.91308868]
[1673080442256,1.6776454,16946.0,16945.0,0.91301714]
[1673080442770,1.1776454,16946.0,16945.0,0.91301714]
[1673080445505,1.1776454,16946.0,16945.0,0.21301714]
[1673080446786,1.1776454,16946.0,16945.0,0.91301714]
[1673080452592,1.1776454,16946.0,16945.0,0.21301714]
[1673080453614,1.1776454,16946.0,16945.0,0.91301714]
[1673080460669,1.1776454,16946.0,16945.0,1.51927614]
[1673080460937,1.1776454,16946.0,16945.0,0.91301714]
[1673080463936,1.1776454,16946.0,16945.0,0.21301714]
[1673080464475,1.1776454,16946.0,16945.0,0.21294268]
[1673080464988,1.1776454,16946.0,16945.0,0.91294268]
[1673080465231,1.1776454,16946.0,16945.0,1.51920168]
[1673080465755,1.1776454,16946.0,16945.0,0.91294268]
[1673080469748,1.1776454,16946.0,16945.0,1.51920168]
[1673080470294,1.1776454,16946.0,16945.0,0.91294268]
[1673080470533,1.1776454,16946.0,16945.0,1.51920168]
[1673080470785,1.1776454,16946.0,16945.0,0.81920168]
[1673080471316,1.1776454,16946.0,16945.0,0.21294268]
[1673080471845,1.1776454,16946.0,16945.0,1.51920168]
[1673080473326,1.1776454,16946.0,16945.0,0.91294268]
[1673080476744,1.1776454,16946.0,16945.0,1.51920168]
[1673080477969,1.1776454,16946.0,16945.0,0.81920168]
[1673080478222,1.1776454,16946.0,16945.0,0.21294268]
[1673080478451,1.1776454,16946.0,16945.0,0.81920168]
[1673080478744,1.1776454,16946.0,16945.0,0.21294268]
[1673080479016,1.1776454,16946.0,16945.0,0.91294268]
[1673080480849,1.1776454,16946.0,16945.0,1.51920168]
[1673080482436,1.17471944,16946.0,16945.0,0.91294268]
[1673080482690,1.17471944,16946.0,16945.0,1.51920168]
[1673080483699,1.17471944,16946.0,16945.0,0.91294268]
[1673080484242,1.17280024,16946.0,16945.0,0.91294268]
[1673080485471,1.17280024,16946.0,16945.0,0.21294268]
[1673080485981,1.17280024,16946.0,16945.0,0.91294268]
[1673080496381,1.17280024,16946.0,16945.0,0.21294268]
[1673080497338,1.17280024,16946.0,16945.0,0.91294268]
[1673080501322,1.17280024,16946.0,16945.0,0.90791968]
[1673080501565,1.67280024,16946.0,16945.0,0.90791968]
[1673080502552,1.67280024,16946.0,16945.0,0.89989968]
[1673080503487,1.67280024,16946.0,16945.0,0.19989968]
[1673080504352,1.67280024,16946.0,16945.0,0.89989968]
[1673080504874,1.17280024,16946.0,16945.0,0.89989968]
[1673080507632,1.17269186,16946.0,16945.0,0.89989968]
[1673080510404,0.53519222,16946.0,16945.0,0.19989968]
[1673080510662,0.005,16946.0,16945.0,1.50615868]
[1673080512029,0.005,16946.0,16945.0,0.89989968]
[1673080513036,0.005,16946.0,16945.0,1.50615868]
[1673080514812,0.6573058,16946.0,16945.0,0.89989968]
[1673080515065,1.18749802,16946.0,16945.0,0.89989968]
[1673080516076,1.19599802,16946.0,16945.0,0.89989968]
[1673080516579,1.19599802,16946.0,16945.0,1.50615868]
[1673080516847,1.19599802,16946.0,16945.0,0.80615868]
[1673080517594,1.19599802,16946.0,16945.0,0.19989968]
[1673080517853,1.19599802,16946.0,16945.0,0.89989968]
[1673080520881,0.6658058,16946.0,16945.0,0.89989968]
[1673080521125,1.19599802,16946.0,16945.0,0.89989968]
[1673080530668,1.19599802,16946.0,16945.0,0.19989968]
[1673080531641,1.19599802,16946.0,16945.0,0.89989968]
[1673080532318,1.19599802,16946.0,16945.0,0.89978864]
[1673080535676,0.6658058,16946.0,16945.0,0.89978864]
[1673080537021,1.19599802,16946.0,16945.0,0.89978864]
[1673080537796,1.19599802,16946.0,16945.0,0.19978864]
[1673080538818,1.19599802,16946.0,16945.0,0.89978864]
[1673080544699,1.19599802,16946.0,16945.0,0.19978864]
[1673080544944,1.19599802,16946.0,16945.0,0.89978864]
[1673080545458,1.19599802,16946.0,16945.0,0.94978864]
[1673080545459,0.6658058,16946.0,16945.0,0.94978864]
[1673080546743,1.26264876,16946.0,16945.0,0.94978864]
[1673080547279,0.6658058,16946.0,16945.0,0.94978864]
[1673080548069,1.19623123,16946.0,16945.0,0.94978864]
[1673080554383,1.19623123,16946.0,16945.0,0.94972345]
[1673080560502,1.19623123,16946.0,16945.0,0.24972345]
[1673080561492,1.19623123,16946.0,16945.0,0.94972345]
[1673080563504,0.54392543,16946.0,16945.0,0.94972345]
[1673080563776,0.54392543,16946.0,16945.0,1.55598245]
[1673080563777,0.0135,16946.0,16945.0,1.55598245]
[1673080564033,0.54392543,16946.0,16945.0,0.94972345]
[1673080564283,0.0135,16946.0,16945.0,0.94972345]
[1673080564797,0.54392543,16946.0,16945.0,0.94972345]
[1673080566568,0.0135,16946.0,16945.0,0.94972345]
[1673080570919,0.54392543,16946.0,16945.0,0.94972345]
[1673080571714,0.0135,16946.0,16945.0,0.94972345]
[1673080573703,0.54392543,16946.0,16945.0,0.94972345]
[1673080574959,0.0135,16946.0,16945.0,0.94972345]
[1673080575480,0.5165245,16946.0,16945.0,0.94972345]
[1673080576223,0.5165245,16946.0,16945.0,0.24972345]
[1673080576706,0.5165245,16946.0,16945.0,0.94972345]
[1673080576952,1.0165245,16946.0,16945.0,1.55588847]
[1673080577202,1.0165245,16946.0,16945.0,0.94962947]
[1673080577448,0.5165245,16946.0,16945.0,0.94962947]
[1673080581123,1.04694993,16946.0,16945.0,0.94962947]
[1673080582649,1.04694993,16946.0,16945.0,0.24962947]
[1673080583666,1.04694993,16946.0,16945.0,0.94962947]
[1673080600595,1.04694993,16946.0,16945.0,0.94955337]
[1673080603851,1.04694993,16946.0,16945.0,0.24955337]
[1673080604889,1.04694993,16946.0,16945.0,0.94955337]
[1673080607332,1.04694993,16946.0,16945.0,0.89955337]
[1673080611872,0.54392543,16946.0,16945.0,0.89955337]
[1673080612136,0.54392543,16946.0,16945.0,1.50581237]
[1673080612638,0.0135,16946.0,16945.0,0.89955337]
[1673080614467,0.66846039,16946.0,16945.0,0.89955337]
[1673080614729,1.19888582,16946.0,16945.0,0.89955337]
[1673080617590,1.19888582,16946.0,16945.0,0.90955337]
[1673080619381,1.19888582,16946.0,16945.0,0.20955337]
[1673080619855,1.19888582,16946.0,16945.0,0.90955337]
[1673080623449,1.19888582,16946.0,16945.0,0.90944188]
[1673080623737,1.69888582,16946.0,16945.0,0.90944188]
[1673080624775,1.19888582,16946.0,16945.0,0.90944188]
[1673080625792,1.19888582,16946.0,16945.0,0.20944188]
[1673080626808,1.19888582,16946.0,16945.0,0.90944188]
[1673080632963,1.19888582,16946.0,16945.0,0.20944188]
[1673080633976,1.19888582,16946.0,16945.0,0.90944188]
[1673080637766,0.54392543,16946.0,16945.0,0.90944188]
[1673080639547,0.54392543,16946.0,16945.0,0.89077193]
[1673080639787,0.54392543,16946.0,16945.0,0.19077193]
[1673080640815,0.54392543,16946.0,16945.0,0.89077193]
[1673080643083,0.0135,16946.0,16945.0,1.49703093]
[1673080643575,0.0135,16946.0,16945.0,0.89077193]
[1673080647780,0.0135,16946.0,16945.0,0.89068287]
[1673080651305,0.50228854,16946.0,16945.0,0.89068287]
[1673080651552,1.03271397,16946.0,16945.0,0.89068287]
[1673080653553,1.03265335,16946.0,16945.0,0.89068287]
[1673080659385,1.03265335,16946.0,16945.0,0.19068287]
[1673080661147,1.03265335,16946.0,16945.0,0.89068287]
[1673080666995,1.03265335,16946.0,16945.0,0.19068287]
[1673080667215,1.03265335,16946.0,16945.0,0.89068287]
[1673080673502,1.03265335,16946.0,16945.0,0.19068287]
[1673080674001,1.03265335,16946.0,16945.0,0.89068287]
[1673080678104,1.03265335,16946.0,16945.0,0.89056469]
[1673080680072,1.03265335,16946.0,16945.0,0.19056469]
[1673080680888,1.03265335,16946.0,16945.0,0.89056469]
[1673080681392,0.50222792,16946.0,16945.0,1.49682369]
[1673080681890,1.03265335,16946.0,16945.0,1.49682369]
[1673080682140,1.48664971,16946.0,16945.0,0.89056469]
[1673080683387,1.03265335,16946.0,16945.0,0.89056469]
[1673080684649,1.02771397,16946.0,16945.0,1.37203093]
[1673080684903,1.02771397,16946.0,16945.0,1.39603093]
[1673080685427,1.48171033,16946.0,16945.0,0.78977193]
[1673080685664,1.48171033,16946.0,16945.0,1.39603093]
[1673080685920,1.02771397,16946.0,16945.0,1.39603093]
[1673080687675,1.02771397,16946.0,16945.0,0.69603093]
[1673080687923,1.02771397,16946.0,16945.0,1.39603093]
[1673080690464,1.02771397,16946.0,16945.0,0.78977193]
[1673080690710,1.02771397,16946.0,16945.0,1.39603093]
[1673080693969,1.02771397,16946.0,16945.0,0.69603093]
[1673080694991,1.02771397,16946.0,16945.0,1.39603093]
[1673080696661,1.02771397,16946.0,16945.0,0.78977193]
[1673080697184,1.02771397,16946.0,16945.0,1.39603093]
[1673080698333,1.02771397,16946.0,16945.0,1.38026828]
[1673080700816,1.02771397,16946.0,16945.0,0.68026828]
[1673080701039,1.48171033,16946.0,16945.0,0.68026828]
[1673080701951,1.48171033,16946.0,16945.0,1.38026828]
[1673080702234,1.02771397,16946.0,16945.0,1.38026828]
[1673080703018,1.48171033,16946.0,16945.0,1.38026828]
[1673080703287,1.48171033,16946.0,16945.0,0.77400928]
[1673080703527,1.48190412,16946.0,16945.0,0.77400928]
[1673080704284,1.48190412,16946.0,16945.0,1.38026828]
[1673080704786,1.48190412,16946.0,16945.0,0.77400928]
[1673080705049,1.48190412,16946.0,16945.0,1.38026828]
[1673080705536,1.48190412,16946.0,16945.0,0.77400928]
[1673080711601,1.48190412,16946.0,16945.0,0.07400928]
[1673080712330,1.02790776,16946.0,16945.0,1.38026828]
[1673080713312,1.48190412,16946.0,16945.0,0.77400928]
[1673080714604,1.48190412,16946.0,16945.0,1.38026828]
[1673080714843,1.48190412,16946.0,16945.0,0.77400928]
[1673080716300,1.48190412,16946.0,16945.0,1.38026828]
[1673080717047,1.48190412,16946.0,16945.0,0.77400928]
[1673080717796,1.48190412,16946.0,16945.0,1.38026828]
[1673080718265,1.48190412,16946.0,16945.0,0.77400928]
[1673080719881,1.48190412,16946.0,16945.0,0.68026828]
[1673080720706,1.48190412,16946.0,16945.0,1.38026828]
[1673080720955,1.02790776,16946.0,16945.0,1.38026828]
[1673080721606,1.02790776,16946.0,16945.0,0.77400928]
[1673080721851,1.48190412,16946.0,16945.0,0.77400928]
[1673080722352,1.48190412,16946.0,16945.0,1.38026828]
[1673080722603,1.02790776,16946.0,16945.0,1.38026828]
[1673080722845,1.02790776,16946.0,16945.0,1.38015139]
[1673080724129,1.02790776,16946.0,16945.0,0.77389239]
[1673080724395,1.48190412,16946.0,16945.0,0.77389239]
[1673080724650,1.48190412,16946.0,16945.0,1.38015139]
[1673080724892,1.02790776,16946.0,16945.0,1.38015139]
[1673080725386,1.48190412,16946.0,16945.0,0.77389239]
[1673080726829,1.48190412,16946.0,16945.0,0.07389239]
[1673080727581,1.48190412,16946.0,16945.0,0.77389239]
[1673080730015,0.9512849,16946.0,16945.0,0.77389239]
[1673080730264,1.48182105,16946.0,16945.0,0.77389239]
[1673080733740,1.48182105,16946.0,16945.0,0.07389239]
[1673080734538,2.01232671,16946.0,16945.0,0.07389239]
[1673080734795,2.01232671,16946.0,16945.0,0.77389239]
[1673080742686,2.01217277,16946.0,16945.0,0.77389239]
[1673080750215,2.01217277,16946.0,16945.0,0.77396616]
[1673080750701,2.01217277,16946.0,16945.0,0.77389239]
[1673080753741,2.01217277,16946.0,16945.0,0.07389239]
[1673080754003,2.60901573,16946.0,16945.0,0.07389239]
[1673080754742,2.60901573,16946.0,16945.0,0.77389239]
[1673080756377,2.60901573,16946.0,16945.0,0.77396616]
[1673080756378,2.01217277,16946.0,16945.0,0.77396616]
[1673080756379,2.01217277,16946.0,16945.0,0.77389239]
[1673080760653,2.01217277,16946.0,16945.0,0.07389239]
[1673080761641,2.01217277,16946.0,16945.0,0.77389239]
[1673080764662,2.01217277,16946.0,16945.0,0.77377288]
[1673080766441,2.01217277,16946.0,16945.0,0.77384665]
[1673080767194,2.01217277,16946.0,16945.0,0.77377288]
[1673080767444,2.01217277,16946.0,16945.0,1.38003188]
[1673080767672,2.01217277,16946.0,16945.0,0.07377288]
[1673080767885,2.01217277,16946.0,16945.0,0.68003188]
[1673080768651,2.01217277,16946.0,16945.0,0.77377288]
[1673080769117,2.00217277,16946.0,16945.0,0.77377288]
[1673080770140,2.00217277,16946.0,16945.0,1.38003188]
[1673080771517,2.01067277,16946.0,16945.0,0.77377288]
[1673080772485,2.01067277,16946.0,16945.0,1.38003188]
[1673080773056,1.55667641,16946.0,16945.0,1.38003188]
[1673080773747,2.01067277,16946.0,16945.0,1.38003188]
[1673080774004,2.01067277,16946.0,16945.0,0.77377288]
[1673080774762,2.01067277,16946.0,16945.0,0.07377288]
[1673080775717,2.01067277,16946.0,16945.0,0.77377288]
[1673080775967,2.01067277,16946.0,16945.0,0.77384665]
[1673080776221,2.01067277,16946.0,16945.0,0.77377288]
[1673080776479,2.01067277,16946.0,16945.0,1.38003188]
[1673080776989,2.01067277,16946.0,16945.0,0.77377288]
[1673080778551,1.55667641,16946.0,16945.0,1.38010565]
[1673080779081,1.55667641,16946.0,16945.0,1.38003188]
[1673080779568,1.55667641,16946.0,16945.0,1.38010565]
[1673080780053,1.55667641,16946.0,16945.0,1.38003188]
[1673080782201,1.55667641,16946.0,16945.0,0.77377288]